fUST/lending_fUST_20250713
["ID","MTS","AMOUNT","RATE_DAILY","PERIOD"]
[371638580,1752372648370,-201.3386586,0.00020989,2]
[371638581,1752372648379,-500.0,0.00020989,2]
[371638582,1752372648390,-151.0,0.00020989,2]
[371638583,1752372648399,-151.0,0.00020989,2]
[371638584,1752372648408,-223.94878752,0.00020989,2]
[371638585,1752372648417,-174.757501,0.00021005,2]
[371638586,1752372648427,-291.84972797,0.00021016,2]
[371638587,1752372648437,-500.0,0.00021016,2]
[371638588,1752372648446,-202.39834563,0.00021016,2]
[371638589,1752372648455,-250.28502159,0.00021016,2]
[371638590,1752372648464,-500.0,0.00021044,2]
[371638591,1752372648473,-500.0,0.00021071,2]
[371638592,1752372648483,-1101.75496128,0.00021072,4]
[371638593,1752372648492,-500.0,0.00021098,2]
[371638594,1752372648501,-174.757501,0.00021105,2]
[371638595,1752372648511,-500.0,0.00021126,2]
[371638596,1752372648520,-500.0,0.00021153,2]
[371638597,1752372648529,-500.0,0.00021181,2]
[371638598,1752372648538,-174.757501,0.00021205,2]
[371638599,1752372648548,-534.02887355,0.00021208,2]
[371638600,1752372648558,-460.0,0.00021208,2]
[371638601,1752372648568,-470.17818155,0.00021208,2]
[371638602,1752372648578,-460.0,0.00021208,2]
[371638603,1752372648593,-460.0,0.00021208,2]
[371638604,1752372648603,-460.0,0.00021208,2]
[371638605,1752372648615,-460.0,0.00021208,2]
[371638606,1752372648626,-460.0,0.00021208,2]
[371638607,1752372648637,-460.0,0.00021208,2]
[371638608,1752372648647,-460.0,0.00021208,2]
[371638609,1752372648656,-460.0,0.00021208,2]
[371638610,1752372648667,-460.0,0.00021208,2]
[371638611,1752372648676,-460.0,0.00021208,2]
[371638612,1752372648686,-460.0,0.00021208,2]
[371638613,1752372648696,-345.00789541,0.00021208,2]
[371638614,1752372648706,-460.0,0.00021208,2]
[371638615,1752372648716,-460.0,0.00021208,2]
[371638616,1752372648726,-460.0,0.00021208,2]
[371638617,1752372648735,-460.0,0.00021208,2]
[371638618,1752372648745,-460.0,0.00021208,2]
[371638619,1752372648756,-460.0,0.00021208,2]
[371638620,1752372648765,-460.0,0.00021208,2]
[371638621,1752372648775,-460.0,0.00021208,2]
[371638622,1752372648784,-460.0,0.00021208,2]
[371638623,1752372648794,-460.0,0.00021208,2]
[371638624,1752372648805,-460.0,0.00021208,2]
[371638625,1752372648815,-460.0,0.00021208,2]
[371638626,1752372648825,-464.38501661,0.00021208,2]
[371638627,1752372648835,-466.78679742,0.00021208,2]
[371638628,1752372648845,-542.431735,0.00021208,2]
[371638629,1752372648855,-460.0,0.00021208,2]
[371638630,1752372648864,-351.15503111,0.00021208,2]
[371638631,1752372648874,-460.0,0.00021208,2]
[371638632,1752372648884,-460.0,0.00021208,2]
[371638633,1752372648893,-460.0,0.00021208,2]
[371638634,1752372648903,-460.0,0.00021208,2]
[371638635,1752372648913,-462.87394977,0.00021208,2]
[371638636,1752372648923,-460.0,0.00021208,2]
[371638637,1752372648939,-460.0,0.00021208,2]
[371638638,1752372648949,-460.0,0.00021208,2]
[371638639,1752372648959,-460.0,0.00021208,2]
[371638641,1752372648969,-460.0,0.00021208,2]
[371638642,1752372648979,-460.0,0.00021208,2]
[371638643,1752372648988,-460.0,0.00021208,2]
[371638644,1752372648997,-460.0,0.00021208,2]
[371638645,1752372649007,-460.0,0.00021208,2]
[371638647,1752372649017,-460.0,0.00021208,2]
[371638648,1752372649026,-460.0,0.00021208,2]
[371638649,1752372649036,-463.99697834,0.00021208,2]
[371638650,1752372649046,-232.40232409,0.00021208,2]
[371638651,1752372649056,-569.15807119,0.00021208,2]
[371638652,1752372649065,-465.09269156,0.00021208,2]
[371638653,1752372649075,-466.33592407,0.00021208,2]
[371638654,1752372649085,-460.0,0.00021208,2]
[371638655,1752372649095,-460.0,0.00021208,2]
[371638656,1752372649105,-460.0,0.00021208,2]
[371638657,1752372649115,-1402.33,0.00021208,2]
[371638658,1752372649125,-460.0,0.00021208,2]
[371638659,1752372649136,-460.0,0.00021208,2]
[371638660,1752372649146,-576.17812653,0.00021208,2]
[371638661,1752372649156,-463.73314946,0.00021208,2]
[371638662,1752372649167,-460.0,0.00021208,2]
[371638663,1752372649177,-460.0,0.00021208,2]
[371638664,1752372649187,-467.57407058,0.00021208,2]
[371638665,1752372649196,-460.0,0.00021208,2]
[371638666,1752372649206,-460.0,0.00021208,2]
[371638667,1752372649217,-460.0,0.00021208,2]
[371638668,1752372649226,-755.1,0.00021208,2]
[371638669,1752372649236,-460.0,0.00021208,2]
[371638670,1752372649246,-460.0,0.00021208,2]
[371638671,1752372649256,-460.0,0.00021208,2]
[371638672,1752372649265,-460.0,0.00021208,2]
[371638674,1752372649275,-460.0,0.00021208,2]
[371638675,1752372649284,-460.0,0.00021208,2]
[371638676,1752372649294,-470.66533873,0.00021208,2]
[371638677,1752372649304,-428.21527176,0.00021208,2]
[371638678,1752372649313,-460.0,0.00021208,2]
[371638679,1752372649323,-512.86,0.00021208,2]
[371638680,1752372649332,-460.0,0.00021208,2]
[371638681,1752372649342,-460.0,0.00021208,2]
[371638682,1752372649351,-324.17524308,0.00021208,2]
[371638683,1752372649361,-460.0,0.00021208,2]
[371638684,1752372649371,-460.0,0.00021208,2]
[371638685,1752372649381,-760.97,0.00021208,2]
[371638686,1752372649392,-460.0,0.00021208,2]
[371638687,1752372649402,-460.0,0.00021208,2]
[371638688,1752372649411,-460.0,0.00021208,2]
[371638689,1752372649421,-460.0,0.00021208,2]
[371638690,1752372649431,-460.0,0.00021208,2]
[371638691,1752372649441,-460.0,0.00021208,2]
[371638692,1752372649452,-460.0,0.00021208,2]
[371638693,1752372649461,-460.0,0.00021208,2]
[371638694,1752372649471,-460.0,0.00021208,2]
[371638695,1752372649481,-460.0,0.00021208,2]
[371638696,1752372649491,-936.51,0.00021208,2]
[371638697,1752372649501,-460.0,0.00021208,2]
[371638698,1752372649511,-460.0,0.00021208,2]
[371638699,1752372649520,-460.0,0.00021208,2]
[371638700,1752372649529,-460.0,0.00021208,2]
[371638701,1752372649539,-460.0,0.00021208,2]
[371638702,1752372649549,-465.97273528,0.00021208,2]
[371638703,1752372649558,-601.54610646,0.00021208,2]
[371638704,1752372649568,-460.0,0.00021208,2]
[371638705,1752372649578,-460.0,0.00021208,2]
[371638706,1752372649591,-460.0,0.00021208,2]
[371638707,1752372649602,-460.0,0.00021208,2]
[371638708,1752372649611,-460.0,0.00021208,2]
[371638709,1752372649621,-460.0,0.00021208,2]
[371638710,1752372649631,-460.0,0.00021208,2]
[371638711,1752372649642,-460.0,0.00021208,2]
[371638712,1752372649652,-460.0,0.00021208,2]
[371638713,1752372649663,-460.0,0.00021208,2]
[371638714,1752372649673,-460.0,0.00021208,2]
[371638715,1752372649682,-1062.87,0.00021208,2]
[371638716,1752372649692,-460.0,0.00021208,2]
[371638717,1752372649701,-460.0,0.00021208,2]
[371638718,1752372649711,-460.0,0.00021208,2]
[371638719,1752372649721,-460.0,0.00021208,2]
[371638720,1752372649730,-460.0,0.00021208,2]
[371638721,1752372649741,-814.39,0.00021208,2]
[371638722,1752372649750,-460.0,0.00021208,2]
[371638723,1752372649759,-239.497449,0.00021248,2]
[371638724,1752372649797,-174.757501,0.00021305,2]
[371638725,1752372649807,-1101.75496128,0.00021314,5]
[371638726,1752372649817,-22664.15358214,0.00021372,2]
[371638727,1752372649827,-1342.32717457,0.00021382,2]
[371638728,1752372649836,-174.757501,0.00021405,2]
[371638729,1752372649846,-391.93779901,0.00021431,2]
[371638730,1752372649855,-25134.60729918,0.00021469,2]
[371638731,1752372649864,-254.332696,0.00021472,4]
[371638732,1752372649874,-501.14485302,0.00021473,2]
[371638733,1752372649883,-500.79075101,0.00021473,2]
[371638734,1752372649895,-460.0,0.00021482,2]
[371638735,1752372649905,-460.0,0.00021482,2]
[371638736,1752372649915,-460.0,0.00021482,2]
[371638737,1752372649925,-460.0,0.00021482,2]
[371638738,1752372649935,-460.0,0.00021482,2]
[371638739,1752372649944,-460.0,0.00021482,2]
[371638740,1752372649955,-460.0,0.00021482,2]
[371638741,1752372649964,-460.0,0.00021482,2]
[371638742,1752372649974,-468.44421567,0.00021482,2]
[371638743,1752372649983,-460.0,0.00021482,2]
[371638744,1752372649993,-460.0,0.00021482,2]
[371638745,1752372650003,-460.0,0.00021482,2]
[371638746,1752372650013,-460.0,0.00021482,2]
[371638747,1752372650022,-460.0,0.00021482,2]
[371638748,1752372650031,-460.0,0.00021482,2]
[371638749,1752372650041,-472.30863493,0.00021482,2]
[371638750,1752372650050,-460.0,0.00021482,2]
[371638751,1752372650060,-421.92546063,0.00021482,2]
[371638752,1752372650069,-460.0,0.00021482,2]
[371638753,1752372650078,-469.97270816,0.00021482,2]
[371638754,1752372650087,-460.0,0.00021482,2]
[371638755,1752372650097,-460.0,0.00021482,2]
[371638756,1752372650107,-460.0,0.00021482,2]
[371638757,1752372650117,-197.74682933,0.00021482,2]
[371638758,1752372650127,-460.0,0.00021482,2]
[371638759,1752372650137,-460.0,0.00021482,2]
[371638760,1752372650147,-463.34055893,0.00021482,2]
[371638761,1752372650156,-460.0,0.00021482,2]
[371638762,1752372650166,-460.0,0.00021482,2]
[371638763,1752372650176,-511.78534288,0.00021482,2]
[371638764,1752372650186,-320.42320784,0.00021482,2]
[371638765,1752372650195,-460.0,0.00021482,2]
[371638766,1752372650205,-460.0,0.00021482,2]
[371638767,1752372650215,-460.0,0.00021482,2]
[371638768,1752372650224,-466.96872883,0.00021482,2]
[371638769,1752372650233,-460.0,0.00021482,2]
[371638770,1752372650242,-460.0,0.00021482,2]
[371638771,1752372650252,-469.94008021,0.00021482,2]
[371638772,1752372650262,-185.20113818,0.00021482,2]
[371638773,1752372650271,-471.48766346,0.00021482,2]
[371638774,1752372650280,-460.0,0.00021482,2]
[371638775,1752372650289,-460.0,0.00021482,2]
[371638776,1752372650299,-460.0,0.00021482,2]
[371638777,1752372650308,-1402.33,0.00021482,2]
[371638778,1752372650318,-460.0,0.00021482,2]
[371638779,1752372650327,-460.0,0.00021482,2]
[371638780,1752372650337,-460.0,0.00021482,2]
[371638781,1752372650347,-460.0,0.00021482,2]
[371638782,1752372650356,-468.51237001,0.00021482,2]
[371638783,1752372650366,-460.0,0.00021482,2]
[371638784,1752372650375,-529.77206793,0.00021482,2]
[371638785,1752372650385,-755.1,0.00021482,2]
[371638786,1752372650395,-460.0,0.00021482,2]
[371638787,1752372650405,-460.0,0.00021482,2]
[371638788,1752372650414,-460.0,0.00021482,2]
[371638789,1752372650424,-460.0,0.00021482,2]
[371638790,1752372650434,-460.0,0.00021482,2]
[371638791,1752372650444,-460.0,0.00021482,2]
[371638792,1752372650453,-466.64526891,0.00021482,2]
[371638793,1752372650463,-512.86,0.00021482,2]
[371638794,1752372650473,-460.0,0.00021482,2]
[371638795,1752372650483,-460.0,0.00021482,2]
[371638796,1752372650493,-460.0,0.00021482,2]
[371638797,1752372650503,-159.12315369,0.00021482,2]
[371638798,1752372650513,-760.97,0.00021482,2]
[371638799,1752372650522,-460.0,0.00021482,2]
[371638800,1752372650531,-460.0,0.00021482,2]
[371638801,1752372650541,-381.85880401,0.00021482,2]
[371638802,1752372650551,-460.0,0.00021482,2]
[371638803,1752372650561,-460.0,0.00021482,2]
[371638804,1752372650570,-460.0,0.00021482,2]
[371638805,1752372650579,-460.0,0.00021482,2]
[371638806,1752372650592,-460.0,0.00021482,2]
[371638807,1752372650601,-460.0,0.00021482,2]
[371638808,1752372650610,-460.0,0.00021482,2]
[371638809,1752372650620,-936.51,0.00021482,2]
[371638810,1752372650630,-460.0,0.00021482,2]
[371638811,1752372650642,-460.0,0.00021482,2]
[371638812,1752372650651,-460.0,0.00021482,2]
[371638813,1752372650661,-460.0,0.00021482,2]
[371638814,1752372650671,-460.0,0.00021482,2]
[371638815,1752372650680,-460.0,0.00021482,2]
[371638816,1752372650690,-460.0,0.00021482,2]
[371638817,1752372650700,-460.0,0.00021482,2]
[371638818,1752372650710,-460.0,0.00021482,2]
[371638819,1752372650719,-460.0,0.00021482,2]
[371638820,1752372650729,-460.0,0.00021482,2]
[371638821,1752372650739,-460.0,0.00021482,2]
[371638822,1752372650749,-460.0,0.00021482,2]
[371638823,1752372650758,-460.0,0.00021482,2]
[371638824,1752372650768,-460.0,0.00021482,2]
[371638825,1752372650778,-603.76474379,0.00021482,2]
[371638826,1752372650788,-460.0,0.00021482,2]
[371638827,1752372650798,-460.0,0.00021482,2]
[371638828,1752372650808,-460.0,0.00021482,2]
[371638829,1752372650817,-173.27672409,0.00021482,2]
[371638830,1752372650827,-1062.87,0.00021482,2]
[371638831,1752372650837,-460.0,0.00021482,2]
[371638832,1752372650847,-814.39,0.00021482,2]
[371638833,1752372650857,-460.0,0.00021482,2]
[371638834,1752372650867,-500.0,0.00021498,2]
[371638835,1752372650877,-1312.25809999,0.00021498,2]
[371638836,1752372650888,-500.0,0.00021498,2]
[371638837,1752372650898,-500.0,0.00021498,2]
[371638838,1752372650907,-364.46096498,0.00021498,2]
[371638839,1752372650917,-1312.25809999,0.00021498,2]
[371638840,1752372650926,-503.4492825,0.00021498,2]
[371638841,1752372650936,-1312.25809999,0.00021498,2]
[371638842,1752372650946,-1312.25809999,0.00021498,2]
[371638843,1752372650956,-500.0,0.00021498,2]
[371638844,1752372650965,-1312.25809999,0.00021498,2]
[371638845,1752372650975,-1312.25809999,0.00021498,2]
[371638846,1752372650984,-500.0,0.00021498,2]
[371638847,1752372650994,-1312.25809999,0.00021498,2]
[371638848,1752372651004,-500.0,0.00021498,2]
[371638849,1752372651013,-500.0,0.00021498,2]
[371638850,1752372651023,-1312.25809999,0.00021498,2]
[371638851,1752372651033,-500.0,0.00021498,2]
[371638852,1752372651043,-1312.25809999,0.00021498,2]
[371638853,1752372651053,-1312.25809999,0.00021498,2]
[371638854,1752372651063,-500.0,0.00021498,2]
[371638855,1752372651072,-1312.25809999,0.00021498,2]
[371638856,1752372651082,-500.0,0.00021498,2]
[371638857,1752372651092,-500.0,0.00021498,2]
[371638858,1752372651101,-500.0,0.00021498,2]
[371638859,1752372651111,-1312.25809999,0.00021498,2]
[371638860,1752372651121,-500.0,0.00021498,2]
[371638861,1752372651130,-1312.25809999,0.00021498,2]
[371638862,1752372651140,-500.0,0.00021498,2]
[371638863,1752372651149,-1312.25809999,0.00021498,2]
[371638864,1752372651159,-500.0,0.00021498,2]
[371638865,1752372651168,-1312.25809999,0.00021498,2]
[371638866,1752372651178,-1312.25809999,0.00021498,2]
[371638867,1752372651188,-1312.25809999,0.00021498,2]
[371638868,1752372651198,-1312.25809999,0.00021498,2]
[371638869,1752372651207,-500.0,0.00021498,2]
[371638870,1752372651217,-500.0,0.00021498,2]
[371638871,1752372651227,-500.0,0.00021498,2]
[371638872,1752372651237,-500.0,0.00021498,2]
[371638873,1752372651246,-381.98765749,0.00021498,2]
[371638874,1752372651256,-500.0,0.00021498,2]
[371638875,1752372651266,-201.16727584,0.00021498,2]
[371638876,1752372651275,-500.0,0.00021498,2]
[371638877,1752372651285,-500.0,0.00021498,2]
[371638878,1752372651295,-500.0,0.00021498,2]
[371638879,1752372651306,-496.31124974,0.00021498,2]
[371638880,1752372651316,-500.0,0.00021498,2]
[371638881,1752372651326,-266.65375663,0.00021498,2]
[371638882,1752372651335,-173.34824122,0.00021498,2]
[371638883,1752372651345,-503.1779763,0.00021498,2]
[371638884,1752372651355,-500.0,0.00021498,2]
[371638885,1752372651365,-500.0,0.00021498,2]
[371638886,1752372651374,-500.0,0.00021498,2]
[371638887,1752372651384,-500.0,0.00021498,2]
[371638888,1752372651395,-500.0,0.00021498,2]
[371638889,1752372651404,-556.23798208,0.00021498,2]
[371638890,1752372651414,-500.0,0.00021498,2]
[371638891,1752372651424,-500.0,0.00021498,2]
[371638892,1752372651434,-500.0,0.00021498,2]
[371638893,1752372651444,-500.0,0.00021498,2]
[371638894,1752372651453,-549.51460545,0.00021498,2]
[371638895,1752372651463,-500.0,0.00021498,2]
[371638896,1752372651473,-500.0,0.00021498,2]
[371638897,1752372651482,-500.0,0.00021498,2]
[371638898,1752372651492,-500.0,0.00021498,2]
[371638899,1752372651501,-500.0,0.00021498,2]
[371638900,1752372651511,-500.0,0.00021498,2]
[371638901,1752372651521,-500.0,0.00021498,2]
[371638902,1752372651531,-172.23131532,0.00021498,2]
[371638903,1752372651541,-500.0,0.00021498,2]
[371638904,1752372651551,-500.0,0.00021498,2]
[371638905,1752372651561,-500.0,0.00021498,2]
[371638906,1752372651571,-159.04568298,0.00021498,2]
[371638907,1752372651581,-500.0,0.00021498,2]
[371638908,1752372651595,-500.0,0.00021498,2]
[371638909,1752372651605,-500.0,0.00021498,2]
[371638910,1752372651614,-500.0,0.00021498,2]
[371638911,1752372651624,-500.0,0.00021498,2]
[371638912,1752372651635,-500.0,0.00021498,2]
[371638913,1752372651645,-500.0,0.00021498,2]
[371638914,1752372651654,-500.0,0.00021498,2]
[371638915,1752372651665,-500.0,0.00021498,2]
[371638916,1752372651675,-500.0,0.00021498,2]
[371638917,1752372651685,-500.0,0.00021498,2]
[371638918,1752372651695,-500.0,0.00021498,2]
[371638919,1752372651706,-501.71958505,0.00021498,2]
[371638920,1752372651716,-500.0,0.00021498,2]
[371638921,1752372651726,-1443.48390999,0.00021498,2]
[371638922,1752372651735,-1443.48390999,0.00021498,2]
[371638923,1752372651745,-1443.48390999,0.00021498,2]
[371638924,1752372651755,-1443.48390999,0.00021498,2]
[371638925,1752372651765,-1443.48390999,0.00021498,2]
[371638926,1752372651775,-1443.48390999,0.00021498,2]
[371638927,1752372651785,-1443.48390999,0.00021498,2]
[371638928,1752372651795,-1443.48390999,0.00021498,2]
[371638929,1752372651806,-1443.48390999,0.00021498,2]
[371638930,1752372651817,-231167.20621927,0.00021499,2]
[371638931,1752372651836,-1060.13935512,0.00021499,2]
[371638932,1752372651849,-4066.67160898,0.00021499,2]
[371638933,1752372652083,-10270.47660898,0.00021499,2]
[371638936,1752373043047,1246.574,0.0002739,120]
[371638941,1752373128932,247.420022,0.00013699,2]
[371638986,1752373723118,3354.13664782,0.00025188,60]
[371639023,1752373832057,-170.522793,0.00019766,2]
[371639026,1752373832073,-300.0,0.00019999,2]
[371639029,1752373832083,-217.906966,0.0002,2]
[371639031,1752373832091,-6212.77264112,0.0002,2]
[371639058,1752373838033,-2715.0,0.0002,2]
[371639061,1752373838086,-685.94467834,0.0002,2]
[371639270,1752373840102,-36503.01844919,0.0002,2]
[371639276,1752373840158,-654.57977133,0.0002,2]
[371639279,1752373840170,-428.55125248,0.0002,2]
[371639281,1752373840183,-8866.90198854,0.0002,2]
[371639285,1752373840214,-788.88089611,0.0002,2]
[371639599,1752373843351,-1051.6,0.0002,2]
[371639884,1752373846197,-11635.1705481,0.0002,2]
[371639886,1752373846207,-247.420022,0.00020187,2]
[371639888,1752373846217,-1279.84375,0.000204,2]
[371639890,1752373846226,-1354.86567235,0.00020748,2]
[371639892,1752373846235,-207.4,0.00020807,2]
[371639894,1752373846245,-460.0,0.0002082,2]
[371639896,1752373846254,-460.0,0.0002082,2]
[371639898,1752373846264,-460.0,0.0002082,2]
[371639900,1752373846274,-462.5252931,0.0002082,2]
[371639902,1752373846283,-460.0,0.0002082,2]
[371639904,1752373846293,-460.0,0.0002082,2]
[371639906,1752373846302,-460.0,0.0002082,2]
[371639908,1752373846312,-464.81383491,0.0002082,2]
[371639910,1752373846322,-469.10632396,0.0002082,2]
[371639912,1752373846331,-465.52497277,0.0002082,2]
[371639914,1752373846341,-462.5552621,0.0002082,2]
[371639916,1752373846351,-460.0,0.0002082,2]
[371639918,1752373846360,-460.0,0.0002082,2]
[371639920,1752373846370,-463.48982438,0.0002082,2]
[371639922,1752373846380,-460.0,0.0002082,2]
[371639924,1752373846389,-466.57725566,0.0002082,2]
[371639926,1752373846399,-462.86709415,0.0002082,2]
[371639929,1752373846410,-463.86449508,0.0002082,2]
[371639931,1752373846419,-461.99224792,0.0002082,2]
[371639933,1752373846428,-460.0,0.0002082,2]
[371639935,1752373846438,-464.3061091,0.0002082,2]
[371639937,1752373846448,-461.83076136,0.0002082,2]
[371639939,1752373846458,-105.92728884,0.0002082,2]
[371640028,1752374219946,260.777546,0.00013699,2]
[371640030,1752374633795,1115.6093,0.00027397,120]
[371640120,1752375032119,-170.522793,0.0001965,2]
[371640122,1752375032128,-213.722344,0.0002,2]
[371640124,1752375032138,-436.52918973,0.0002,2]
[371640126,1752375032147,-79.38282857,0.00020187,2]
[371640130,1752375032173,-181.39471743,0.00020187,2]
[371640131,1752375032182,-528.78321615,0.00020547,2]
[371640134,1752375032192,-294.07206657,0.00020645,2]
[371640136,1752375032203,-5.92793343,0.00020645,2]
[371640138,1752375032217,-461.13672767,0.00020646,2]
[371640140,1752375032226,-463.50323042,0.00020646,2]
[371640143,1752375032235,-461.65896092,0.00020646,2]
[371640145,1752375032244,-461.49592624,0.00020646,2]
[371640147,1752375032254,-462.39463851,0.00020646,2]
[371640149,1752375032263,-460.0,0.00020646,2]
[371640151,1752375032273,-468.39873787,0.00020646,2]
[371640153,1752375032282,-462.10144781,0.00020646,2]
[371640156,1752375032293,-460.0,0.00020646,2]
[371640158,1752375032303,-460.0,0.00020646,2]
[371640161,1752375032312,-460.0,0.00020646,2]
[371640165,1752375032322,-460.0,0.00020646,2]
[371640168,1752375032331,-460.0,0.00020646,2]
[371640171,1752375032340,-460.0,0.00020646,2]
[371640174,1752375032349,-460.0,0.00020646,2]
[371640177,1752375032359,-460.0,0.00020646,2]
[371640180,1752375032368,-460.0,0.00020646,2]
[371640183,1752375032378,-460.0,0.00020647,2]
[371640185,1752375032387,-460.0,0.00020647,2]
[371640187,1752375032396,-460.0,0.00020647,2]
[371640190,1752375032406,-460.0,0.00020647,2]
[371640193,1752375032415,-460.0,0.00020647,2]
[371640195,1752375032425,-460.72586002,0.00020647,2]
[371640197,1752375032434,-462.52065135,0.00020647,2]
[371640200,1752375032443,-460.0,0.00020647,2]
[371640203,1752375032453,-460.0,0.00020647,2]
[371640205,1752375032463,-462.36486291,0.00020647,2]
[371640207,1752375032473,-460.0,0.00020647,2]
[371640209,1752375032482,-472.87795561,0.00020647,2]
[371640211,1752375032492,-465.95814815,0.00020647,2]
[371640213,1752375032502,-460.0,0.00020647,2]
[371640215,1752375032511,-460.0,0.00020647,2]
[371640217,1752375032521,-462.47681248,0.00020647,2]
[371640219,1752375032532,-460.0,0.00020647,2]
[371640221,1752375032542,-460.0,0.00020647,2]
[371640222,1752375032552,-462.83857542,0.00020647,2]
[371640224,1752375032561,-460.0,0.00020647,2]
[371640226,1752375032571,-463.69468841,0.00020647,2]
[371640228,1752375032581,-460.0,0.00020647,2]
[371640230,1752375032591,-588.42174203,0.00020647,2]
[371640232,1752375032600,-409.24008746,0.00020647,2]
[371640234,1752375032610,-460.0,0.00020647,2]
[371640236,1752375032620,-460.0,0.00020647,2]
[371640238,1752375032629,-585.96157153,0.00020647,2]
[371640240,1752375032638,-460.0,0.00020647,2]
[371640242,1752375032647,-460.0,0.00020647,2]
[371640244,1752375032657,-460.0,0.00020647,2]
[371640246,1752375032667,-460.0,0.00020647,2]
[371640248,1752375032677,-460.0,0.00020647,2]
[371640250,1752375032686,-461.22848331,0.00020647,2]
[371640252,1752375032695,-461.5262086,0.00020647,2]
[371640254,1752375032705,-287.89040133,0.00020647,2]
[371640256,1752375032714,-460.0,0.00020647,2]
[371640258,1752375032724,-465.16201405,0.00020647,2]
[371640259,1752375032734,-465.41960242,0.00020647,2]
[371640261,1752375032743,-460.0,0.00020647,2]
[371640263,1752375032752,-461.12841663,0.00020647,2]
[371640265,1752375032762,-460.0,0.00020647,2]
[371640267,1752375032773,-460.0,0.00020647,2]
[371640269,1752375032783,-460.0,0.00020647,2]
[371640271,1752375032792,-460.0,0.00020647,2]
[371640273,1752375032801,-477.25098558,0.00020647,2]
[371640275,1752375032810,-735.93,0.00020647,2]
[371640277,1752375032820,-460.0,0.00020647,2]
[371640279,1752375032829,-460.0,0.00020647,2]
[371640281,1752375032839,-484.34785195,0.00020647,2]
[371640283,1752375032849,-460.0,0.00020647,2]
[371640285,1752375032859,-460.0,0.00020647,2]
[371640287,1752375032868,-460.0,0.00020647,2]
[371640289,1752375032877,-460.0,0.00020647,2]
[371640291,1752375032887,-460.0,0.00020647,2]
[371640293,1752375032896,-517.59533431,0.00020647,2]
[371640295,1752375032905,-289.34101334,0.00020647,2]
[371640297,1752375032915,-463.35503108,0.00020647,2]
[371640298,1752375032925,-460.0,0.00020647,2]
[371640300,1752375032934,-460.0,0.00020647,2]
[371640302,1752375032945,-533.72606646,0.00020647,2]
[371640304,1752375032954,-460.0,0.00020647,2]
[371640306,1752375032964,-460.0,0.00020647,2]
[371640308,1752375032974,-794.88,0.00020647,2]
[371640309,1752375032983,-460.0,0.00020647,2]
[371640310,1752375032992,-1303.71,0.00020647,2]
[371640312,1752375033002,-460.0,0.00020647,2]
[371640314,1752375033011,-460.0,0.00020647,2]
[371640316,1752375033021,-460.0,0.00020647,2]
[371640317,1752375033030,-464.15254929,0.00020647,2]
[371640319,1752375033040,-460.0,0.00020647,2]
[371640321,1752375033051,-460.0,0.00020647,2]
[371640323,1752375033061,-468.9275782,0.00020647,2]
[371640325,1752375033071,-243.92223237,0.00020647,2]
[371640327,1752375033081,-460.0,0.00020647,2]
[371640329,1752375033091,-460.0,0.00020647,2]
[371640331,1752375033101,-472.48447333,0.00020647,2]
[371640333,1752375033111,-460.0,0.00020647,2]
[371640335,1752375033121,-460.0,0.00020647,2]
[371640337,1752375033131,-467.06262619,0.00020647,2]